bitfinex-derivatives/quotes_ETHF0:USTF0_20260213
["timestamp","ask_amount","ask_price","bid_price","bid_amount"]
[1770950886850,45.90027245,1946.0,1944.5,0.56408378]
[1770950886851,0.57997889,1945.6,1944.5,0.56408378]
[1770950891448,1.2476281,1945.3,1944.5,0.56408378]
[1770950891656,1.2476281,1945.3,1944.5,8.23609183]
[1770950891958,0.57997889,1945.2,1944.6,0.56408378]
[1770950894857,0.57997889,1945.8,1944.6,0.56408378]
[1770950896151,0.57997889,1945.6,1944.7,0.56408378]
[1770950900451,0.57997889,1945.6,1944.9,0.56408378]
[1770950907861,0.57997889,1945.2,1944.9,0.56408378]
[1770950908162,19.3690827,1946.0,1944.9,0.56408378]
[1770950908163,0.57997889,1945.9,1944.9,0.56408378]
[1770950908363,0.57997889,1945.7,1944.9,0.56408378]
[1770950911169,0.57997889,1945.7,1945.0,0.58372696]
[1770950912570,0.57726125,1946.0,1945.1,0.58374113]
[1770950912767,0.57726125,1946.0,1945.3,0.58374113]
[1770950915373,0.00544255,1946.1,1945.3,6.72874694]
[1770950915671,0.58451004,1946.1,1945.4,0.54134666]
[1770950917573,0.58451004,1946.1,1945.3,0.54134666]
[1770950921985,0.58451004,1946.1,1945.2,6.68635247]
[1770950922187,0.57906749,1945.5,1945.2,6.68635247]
[1770950922979,0.57906749,1945.9,1945.3,0.54134666]
[1770950923185,0.57906749,1945.9,1945.4,0.54134666]
[1770950923684,0.57906749,1945.9,1945.3,0.54134666]
[1770950930187,0.57906749,1945.9,1945.4,0.54134666]
[1770950931488,0.00544255,1946.1,1945.4,0.54134666]
[1770950931691,0.58451004,1946.1,1945.4,0.54134666]
[1770950933294,0.58451004,1946.1,1945.3,0.54134666]
[1770950936891,0.57906749,1945.9,1945.3,0.54134666]
[1770950937093,1.2476281,1945.6,1945.3,0.54134666]
[1770950937595,0.57906749,1945.7,1945.3,0.54134666]
[1770950937795,0.57906749,1945.7,1945.2,6.68635247]
[1770950937997,0.57906749,1945.5,1945.1,0.54134666]
[1770950938386,0.57906749,1945.7,1945.1,0.54134666]
[1770950939797,0.57906749,1945.9,1945.2,0.54134666]
[1770950939996,0.57906749,1945.9,1945.3,0.54134666]
[1770950941602,0.57906749,1945.9,1945.5,0.57297644]
[1770950941792,0.57906749,1945.9,1945.5,0.5771553]
[1770950941990,0.54951642,1946.1,1945.5,0.5771553]
[1770950942299,0.54407387,1946.3,1945.8,0.57297644]
[1770950943299,0.54984179,1946.3,1945.8,0.57297644]
[1770950948902,0.54984179,1946.3,1945.7,0.57297644]
[1770950949306,0.00576792,1946.3,1945.9,0.57297644]
[1770950949501,0.54407387,1946.4,1945.9,0.57297644]
[1770950949702,0.54407387,1946.4,1945.8,0.57297644]
[1770950949901,0.54407387,1946.4,1945.7,6.71798225]
[1770950950107,0.54407387,1946.4,1945.7,6.14500581]
[1770950950307,0.54407387,1946.4,1945.7,6.71798225]
[1770950950607,0.54872938,1946.4,1945.7,6.71798225]
[1770950950804,0.54872938,1946.4,1945.8,0.57297644]
[1770950952407,0.54872938,1946.4,1945.9,0.00330309]
[1770950953306,0.00465551,1946.4,1945.9,0.00330309]
[1770950954109,0.60331904,1946.4,1945.9,0.00330309]
[1770950956008,0.54407387,1946.6,1945.9,0.00330309]
[1770950956313,0.54407387,1946.6,1946.1,0.57297644]
[1770950956807,0.54407387,1946.8,1946.1,0.57297644]
[1770950957015,0.55065916,1946.8,1946.1,0.57297644]
[1770950957714,0.55065916,1946.8,1946.3,0.57297644]
[1770950958505,0.54407387,1947.0,1946.3,0.57297644]
[1770950959610,0.54854272,1947.0,1946.3,0.57297644]
[1770950964704,0.54407387,1946.8,1946.3,0.57297644]
[1770950964910,0.54407387,1946.9,1946.3,0.57297644]
[1770950967311,0.64816476,1946.6,1946.3,0.57297644]
[1770950967918,0.54407387,1946.7,1946.3,0.57297644]
[1770950968416,0.54407387,1946.7,1946.1,17.31898225]
[1770950968616,0.54407387,1946.7,1946.0,17.36298225]
[1770950968818,0.54407387,1946.6,1946.0,0.57297644]
[1770950969011,0.54407387,1946.6,1945.9,0.57297644]
[1770950969213,0.54407387,1946.6,1945.8,11.22497644]
[1770950969410,0.54407387,1946.4,1945.8,11.22497644]
[1770950970020,0.54407387,1946.4,1945.8,0.57297644]
[1770950970517,0.58003958,1946.2,1945.5,17.39569782]
[1770950970819,0.58003958,1946.2,1945.6,0.58951315]
[1770950971521,0.58003958,1946.2,1945.5,16.80618467]
[1770950971522,0.58003958,1946.0,1945.5,0.59369201]
[1770950975622,0.54914355,1946.4,1945.7,0.54819687]
[1770950976920,0.54914355,1946.2,1945.6,0.54819687]
[1770950982424,0.54914355,1946.2,1945.5,0.55237573]
[1770950982631,0.54914355,1945.8,1945.5,0.00417886]
[1770950982830,0.54914355,1946.0,1945.5,0.55237573]
[1770950983028,0.54914355,1946.1,1945.5,0.55237573]
[1770950987233,0.54914355,1946.1,1945.5,0.00417886]
[1770950987736,0.54914355,1946.1,1945.5,0.55237573]
[1770950992436,0.54914355,1946.1,1945.5,0.00417886]
[1770950992741,0.54914355,1946.0,1945.5,0.55237573]
[1770950995237,0.54914355,1946.0,1945.5,0.00417886]
[1770950995739,0.54914355,1946.0,1945.5,0.55237573]
[1770950997135,0.54914355,1946.0,1945.5,0.00417886]
[1770950997331,0.54914355,1945.5,1945.0,6.69320268]
[1770950997635,0.54914355,1945.5,1944.5,6.14500581]
[1770950997837,0.54914355,1945.2,1944.4,6.69320268]
[1770950998135,0.54914355,1945.2,1944.4,0.54819687]
[1770950998334,0.55316749,1945.2,1944.4,0.0044586]
[1770950998535,0.54914355,1944.9,1944.1,0.54819687]
[1770950999533,0.54914355,1944.9,1944.1,0.55245937]
[1770951000334,0.00402394,1945.2,1944.1,0.55245937]
[1770951000335,0.54914355,1945.1,1944.1,0.55245937]
[1770951000935,0.00402394,1945.2,1944.4,0.58255961]
[1770951001140,0.00402394,1945.2,1944.5,0.58255961]
[1770951003133,0.56488843,1945.7,1944.6,0.58255961]
[1770951003442,0.56488843,1945.7,1944.7,0.58255961]
[1770951003642,0.56488843,1945.7,1944.9,0.58255961]
[1770951004240,0.56936863,1945.7,1944.9,0.58255961]
[1770951008041,0.0044802,1945.7,1945.0,0.58255961]
[1770951008346,0.56488843,1946.0,1945.1,0.58255961]
[1770951009446,0.57086406,1946.0,1945.1,0.58255961]
[1770951011347,0.64816476,1945.6,1945.1,0.58255961]
[1770951011547,1.21305319,1945.6,1945.1,0.58255961]
[1770951012144,0.64816476,1945.6,1945.1,0.58255961]
[1770951018052,1.21305319,1945.6,1945.1,0.58255961]
[1770951018443,0.56488843,1945.6,1945.2,0.58255961]
[1770951018951,0.56488843,1945.9,1945.2,0.58255961]
[1770951019452,0.56488843,1945.9,1945.3,0.58255961]
[1770951019652,0.00597563,1946.0,1945.3,0.58255961]
[1770951019841,0.57086406,1946.0,1945.5,0.58255961]
[1770951020047,0.00597563,1946.0,1945.5,0.58775139]
[1770951020552,0.56488843,1946.2,1945.5,0.58775139]
[1770951020952,0.56488843,1946.7,1945.5,0.58775139]
[1770951021452,0.56868694,1946.7,1945.5,0.58775139]
[1770951021654,0.56868694,1946.7,1945.6,0.58255961]
[1770951022354,0.56868694,1946.7,1945.7,0.58255961]
[1770951023851,0.56868694,1946.7,1945.8,0.58255961]
[1770951024051,0.56868694,1946.7,1946.0,0.58255961]
[1770951024251,0.00379851,1946.7,1946.0,0.58255961]
[1770951024656,0.56488843,1947.0,1946.1,0.58255961]
[1770951025155,0.56488843,1947.0,1946.0,6.40214581]
[1770951025156,0.56488843,1947.0,1946.0,0.58255961]
[1770951025752,0.57033619,1947.0,1946.0,41.38255961]
[1770951026149,0.57033619,1947.0,1946.0,0.58255961]
[1770951026352,0.56488843,1946.2,1945.7,0.58255961]
[1770951026760,0.56488843,1946.2,1945.9,0.58255961]
[1770951028161,0.56488843,1946.2,1945.8,0.58255961]
[1770951028355,0.56488843,1946.9,1945.8,0.58255961]
[1770951029256,0.56488843,1946.9,1946.0,0.58255961]
[1770951029457,0.56488843,1946.9,1946.2,0.58255961]
[1770951029958,0.00544776,1947.0,1946.2,0.58255961]
[1770951030161,0.57033619,1947.0,1946.2,0.58255961]
[1770951037064,0.00544776,1947.0,1946.2,0.58255961]
[1770951037271,0.00544776,1947.0,1946.4,0.55197361]
[1770951038664,0.54615173,1947.0,1946.4,0.55197361]
[1770951039969,0.00544776,1947.0,1946.4,0.55197361]
[1770951043276,0.54070397,1947.4,1946.6,0.55197361]
[1770951043473,45.90027245,1948.1,1946.6,0.55197361]
[1770951043474,0.64816476,1947.2,1946.6,0.55197361]
[1770951043676,0.54070397,1947.5,1946.8,0.55197361]
[1770951044278,0.54469682,1947.5,1946.8,0.55197361]
[1770951045580,0.54469682,1947.5,1946.6,0.55197361]
[1770951050274,0.54469682,1947.5,1946.7,0.55197361]
[1770951051281,0.54469682,1947.5,1946.8,0.55197361]
[1770951052180,0.54469682,1947.5,1946.7,0.55197361]
[1770951053078,0.54469682,1947.5,1946.8,0.55197361]
[1770951055582,0.54469682,1947.5,1946.7,0.55197361]
[1770951058181,0.54469682,1947.5,1946.8,0.55197361]
[1770951059278,0.54070397,1946.9,1946.6,6.14500581]
[1770951059485,0.54070397,1946.9,1946.5,6.95405942]
[1770951059680,0.54070397,1946.9,1946.6,0.55197361]
[1770951060081,10.13599285,1947.5,1946.6,0.55197361]
[1770951060282,0.54070397,1947.3,1946.6,0.55197361]
[1770951060882,0.54070397,1947.3,1946.7,0.54574961]
[1770951062682,0.54070397,1947.3,1946.5,6.14500581]
[1770951062989,0.54070397,1947.3,1946.6,0.54574961]
[1770951063789,0.54070397,1947.3,1946.7,0.54574961]
[1770951063980,0.54070397,1947.3,1946.6,0.1]
[1770951064186,0.54070397,1947.3,1946.6,0.64574961]
[1770951066184,0.54070397,1947.3,1946.7,0.54574961]
[1770951067481,0.54070397,1947.3,1946.6,6.24500581]
[1770951067688,0.59653771,1947.1,1946.6,0.1]
[1770951067884,4.47128237,1947.0,1946.5,0.54574961]
[1770951068193,0.60053056,1947.5,1946.9,0.54574961]
[1770951068483,0.00399285,1947.5,1947.1,0.54574961]
[1770951068687,0.59653771,1947.8,1947.1,0.54574961]
[1770951069198,0.59653771,1948.1,1947.7,0.54574961]
[1770951069788,0.60064257,1948.1,1947.5,0.54574961]
[1770951071392,0.60064257,1948.1,1947.3,0.54574961]
[1770951077688,0.60064257,1948.1,1947.5,0.54574961]
[1770951082104,0.00410486,1948.1,1947.5,0.54574961]
[1770951082296,0.59653771,1948.4,1947.5,0.54574961]
[1770951082596,0.59653771,1948.5,1947.7,0.54574961]
[1770951082899,0.59653771,1949.1,1947.8,0.54574961]
[1770951083094,0.59653771,1948.9,1947.8,0.54574961]
[1770951083303,0.60043661,1948.9,1947.9,0.54574961]
[1770951083497,0.0038989,1948.9,1948.1,0.54574961]
[1770951083799,0.59653771,1949.5,1948.6,0.54574961]
[1770951083999,0.59653771,1949.5,1948.8,0.54574961]
[1770951084601,0.59653771,1950.0,1949.0,0.54574961]
[1770951084902,0.59653771,1949.2,1948.2,0.58565388]
[1770951085304,5.3550114,1949.9,1948.4,0.61150117]
[1770951085502,2.27940071,1949.9,1948.4,0.61150117]
[1770951085705,2.27940071,1949.6,1948.4,0.61150117]
[1770951086005,0.00389462,1949.6,1948.4,0.61766922]
[1770951087496,2.28329533,1949.6,1948.4,0.61766922]
[1770951087894,0.00389462,1949.6,1948.4,0.61766922]
[1770951088502,0.00389462,1949.6,1948.6,0.60142398]
[1770951088796,0.00389462,1949.6,1948.8,0.60142398]
[1770951090503,0.00492585,1950.0,1949.0,0.59642682]
[1770951091000,0.00492585,1950.0,1949.2,0.59447951]
[1770951091501,0.00745673,1949.9,1949.0,11.90284621]
[1770951092199,0.00745673,1949.9,1949.0,0.59484621]
[1770951092403,0.00745673,1949.8,1948.8,0.59484621]
[1770951094498,0.02318112,1950.0,1948.8,0.85161621]
[1770951094694,0.02318112,1950.0,1948.9,0.59417066]
[1770951094897,0.01793554,1949.9,1948.9,0.59417066]
[1770951095101,0.00524558,1950.0,1948.9,0.59417066]
[1770951095601,0.02340251,1950.0,1948.9,0.59417066]
[1770951096201,0.00524558,1950.0,1949.1,0.59417066]
[1770951096803,0.02340251,1950.0,1949.1,0.59417066]
[1770951097405,0.03233261,1949.9,1949.1,0.59417066]
[1770951099203,0.00524558,1950.0,1949.1,0.59417066]
[1770951099600,0.02920919,1950.7,1949.3,0.59417066]
[1770951099806,0.02920919,1950.9,1949.5,0.59417066]
[1770951100102,0.02920919,1950.8,1949.5,0.59417066]
[1770951100705,0.0342315,1950.8,1949.5,0.59417066]
[1770951103408,0.00502231,1950.8,1949.9,0.59417066]
[1770951103711,0.00502231,1950.8,1950.0,0.59417066]
[1770951104206,0.01276783,1950.7,1949.9,0.00523109]
[1770951104507,0.01276783,1950.7,1949.9,0.59940175]
[1770951105407,0.01276783,1950.7,1949.9,0.00523109]
[1770951105606,2.28442302,1950.8,1949.5,0.60080846]
[1770951105607,2.27940071,1950.5,1949.5,0.60080846]
[1770951105802,0.25657,1950.4,1949.3,0.60080846]
[1770951106501,4.49642957,1950.3,1949.3,0.60706158]
[1770951106704,0.25657,1950.4,1949.3,0.60706158]
[1770951106905,4.49643296,1950.3,1949.3,0.60706158]
[1770951107105,2.27940071,1950.2,1949.3,0.60706158]
[1770951107305,0.01723158,1950.1,1949.3,0.60706158]
[1770951108312,0.01723158,1950.1,1949.3,0.00625312]
[1770951108811,0.01723158,1950.1,1949.1,0.59417066]
[1770951109611,0.01723158,1950.1,1949.1,0.59870463]
[1770951110214,0.01876992,1949.8,1949.1,0.00453397]
[1770951110606,0.01876992,1949.8,1949.1,0.59870463]
[1770951112208,0.01888737,1949.9,1949.1,0.59870463]
[1770951113316,4.54385227,1949.8,1949.1,0.59870463]
[1770951113515,0.01888737,1949.8,1949.1,0.59870463]
[1770951113917,0.02346709,1949.6,1949.1,0.00453397]
[1770951114117,0.02346709,1949.6,1949.0,0.59417066]
[1770951115011,0.02346709,1949.6,1949.0,0.59863266]
[1770951115216,0.02346709,1949.6,1949.0,0.004462]
[1770951115419,0.02346709,1949.6,1948.8,0.59417066]
[1770951115618,0.02323912,1949.4,1948.8,0.59417066]
[1770951116116,0.02323912,1949.4,1948.6,0.59417066]
[1770951116318,0.02323912,1949.2,1948.6,0.59417066]
[1770951116511,0.02323912,1949.0,1948.2,0.59417066]
[1770951117021,0.02323912,1949.2,1948.2,0.59417066]
[1770951117214,17.18419266,1949.4,1948.2,0.59417066]
[1770951117413,4.55247785,1949.3,1948.2,0.59417066]
[1770951117612,4.52448995,1949.2,1948.2,0.59417066]
[1770951117816,0.0279879,1949.3,1948.2,0.59830846]
[1770951118015,4.52449042,1949.2,1948.2,0.59830846]
[1770951118314,0.0279879,1949.3,1948.2,0.59830846]
[1770951118512,0.0279879,1949.1,1948.2,0.59830846]
[1770951120013,0.28889669,1949.2,1948.2,0.59830846]
[1770951120217,0.03215669,1949.1,1948.2,0.59830846]
[1770951120617,0.2894697,1949.2,1948.2,0.59830846]
[1770951121021,14.11807255,1949.4,1948.2,0.59830846]
[1770951121315,0.03228325,1949.3,1948.2,0.59830846]
[1770951121714,0.03228325,1949.2,1948.2,0.59830846]
[1770951121917,14.1176261,1949.4,1948.2,0.59830846]
[1770951122116,4.51840324,1949.3,1948.2,0.59830846]
[1770951122418,0.00634285,1949.4,1948.2,0.59830846]
[1770951122620,0.03228325,1949.8,1948.6,0.57947125]
[1770951122814,0.0386261,1950.0,1948.8,0.57947125]
[1770951123314,14.122,1950.2,1949.0,0.57941452]
[1770951123520,14.16073956,1950.2,1949.0,0.57941452]
[1770951123718,14.16565218,1950.2,1949.0,0.57941452]
[1770951124719,0.03873956,1950.1,1949.0,0.57941452]
[1770951125516,0.05212636,1949.9,1949.0,0.57941452]
[1770951126615,0.05212636,1949.7,1949.0,0.57941452]
[1770951126816,0.00491262,1950.2,1949.0,0.57941452]
[1770951127016,0.00491262,1950.2,1949.2,0.57939128]
[1770951127417,14.15670338,1950.8,1949.3,0.57939128]
[1770951127618,4.51388706,1950.7,1949.3,0.57939128]
[1770951127820,0.057616,1950.7,1949.3,0.57939128]
[1770951128014,0.057616,1950.5,1949.3,0.57939128]
[1770951128523,0.06143907,1950.5,1949.3,0.57939128]
[1770951130628,0.00382307,1950.5,1949.3,0.57939128]
[1770951131523,0.06392057,1950.5,1949.3,0.57939128]
[1770951131824,0.0600975,1950.3,1949.3,0.57939128]
[1770951132028,0.06392057,1950.5,1949.3,0.57939128]
[1770951132521,0.0600975,1950.2,1949.3,0.57939128]
[1770951132719,0.25658,1950.3,1949.3,0.57939128]
[1770951133022,0.0600975,1950.2,1949.3,0.57939128]
[1770951135121,0.25658,1950.3,1949.3,0.57939128]
[1770951135516,0.31542815,1950.3,1949.3,0.57939128]
[1770951135726,0.05884815,1950.2,1949.3,0.57939128]
[1770951138018,0.06188383,1950.0,1949.1,0.57939128]
[1770951138223,14.095,1950.1,1949.1,0.57939128]
[1770951138619,3.1195863,1950.4,1949.1,0.57939128]
[1770951138831,4.53213273,1950.3,1949.1,0.57939128]
[1770951139028,4.53213273,1950.2,1949.1,0.57939128]
[1770951139220,3.1195863,1950.4,1949.1,0.57939128]
[1770951139426,4.59253479,1950.3,1949.1,0.57939128]
[1770951139626,4.53110114,1950.2,1949.1,0.57939128]
[1770951139829,0.06143365,1950.3,1949.1,0.57939128]
[1770951141026,60.03145131,1950.5,1949.1,0.57939128]
[1770951141027,17.23595919,1950.5,1949.1,0.57939128]
[1770951141225,4.53072347,1950.4,1949.1,0.57939128]
[1770951141431,17.23595919,1950.5,1949.1,0.57939128]
[1770951141625,14.17825672,1950.5,1949.2,0.57939128]
[1770951143930,14.17825672,1950.5,1949.4,0.57939128]
[1770951144335,0.05717701,1950.4,1949.4,0.57939128]
[1770951150540,0.05720163,1950.2,1949.4,0.57939128]
[1770951150937,17.23172717,1950.5,1949.4,0.57939128]
[1770951151137,4.53944049,1950.4,1949.4,0.57939128]
[1770951151334,17.17452554,1950.5,1949.5,0.56937195]
[1770951151533,4.54287466,1950.4,1949.5,0.56937195]
[1770951151735,17.17452554,1950.5,1949.5,0.56937195]
[1770951151935,4.54287766,1950.4,1949.6,0.56937195]
[1770951152139,0.05849999,1950.4,1949.6,0.57541494]
[1770951152338,4.54851301,1950.3,1949.6,0.57541494]
[1770951152538,0.05849999,1950.4,1949.6,0.57541494]
[1770951152839,4.54849782,1950.3,1949.6,0.57541494]
[1770951153138,63.14765377,1950.5,1949.6,0.57541494]
[1770951153338,7.60619658,1950.4,1949.6,0.57541494]
[1770951154141,7.66682504,1950.4,1949.6,0.57541494]
[1770951154340,4.54849411,1950.3,1949.6,0.57541494]
[1770951155336,4.60881055,1950.3,1949.6,0.57541494]
[1770951155539,3.05770247,1950.4,1949.6,0.57541494]
[1770951155739,7.66785296,1950.4,1949.6,0.57541494]
[1770951155941,4.54983405,1950.3,1949.6,0.57541494]
[1770951156343,3.05770247,1950.4,1949.6,0.57541494]
[1770951156641,4.5515937,1950.4,1949.6,0.57541494]
[1770951156836,4.5515937,1950.3,1949.6,0.57541494]
[1770951157144,14.11682307,1950.5,1949.6,0.57541494]
[1770951157436,4.55153665,1950.4,1949.6,0.57541494]
[1770951157637,0.00382307,1950.5,1949.6,0.57541494]
[1770951157840,4.53462579,1950.4,1949.6,0.57541494]
[1770951158040,0.00382307,1950.5,1949.6,0.57541494]
[1770951158239,4.53462579,1950.4,1949.6,0.57541494]
[1770951158446,0.00382307,1950.5,1949.6,0.57541494]
[1770951158946,0.00382307,1950.5,1949.6,6.62814407]
[1770951159145,0.00382307,1950.5,1949.7,0.58233377]
[1770951160347,0.00382307,1950.5,1949.8,0.58233377]
[1770951161355,27.40376361,1951.0,1949.9,0.58233377]
[1770951161545,4.53688935,1950.9,1949.9,0.58233377]
[1770951161742,14.21406114,1951.0,1949.9,0.58233377]
[1770951162044,4.53685193,1950.9,1949.9,0.58233377]
[1770951162242,14.21406114,1951.0,1949.9,0.58233377]
[1770951162544,4.59875015,1950.9,1949.9,0.58233377]
[1770951162739,0.06388421,1950.9,1949.9,0.58233377]
[1770951163850,0.06775396,1950.7,1949.9,0.58233377]
[1770951165948,0.00529925,1951.0,1949.9,0.58233377]
[1770951166145,0.00529925,1951.0,1950.0,0.58233377]
[1770951166345,0.00529925,1951.0,1950.0,6.6350629]
[1770951166547,0.00529925,1951.0,1950.1,0.58233377]
[1770951167447,0.44733223,1951.6,1950.6,6.05272913]
[1770951167643,45.9559649,1952.4,1951.3,6.10144814]
[1770951167842,0.59858257,1952.5,1951.4,17.52944814]
[1770951168047,0.59858257,1952.2,1951.2,6.10144814]
[1770951168348,0.59858257,1952.2,1950.7,6.10144814]
[1770951168349,0.59858257,1952.0,1950.7,6.10144814]
[1770951168549,0.60506334,1952.0,1950.7,0.00406797]
[1770951168855,0.59858257,1951.7,1950.7,0.00406797]
[1770951169153,0.59858257,1951.3,1950.7,0.00406797]
[1770951169357,0.59858257,1951.3,1950.8,0.03707747]
[1770951169550,0.59772833,1951.7,1950.8,0.03707747]
[1770951169751,0.59772833,1951.3,1950.8,0.03707747]
[1770951169951,0.59772833,1951.3,1950.7,0.00406797]
[1770951170152,0.59772833,1951.1,1950.7,0.00406797]
[1770951170356,0.59772833,1951.1,1950.3,0.03707747]
[1770951170558,0.59772833,1951.3,1950.3,0.03707747]
[1770951171252,0.59772833,1951.3,1950.3,0.04363143]
[1770951175162,0.59772833,1951.3,1950.3,0.00655396]
[1770951175363,0.59772833,1951.3,1950.3,0.07355802]
[1770951175557,0.5128,1951.1,1950.3,0.07355802]
[1770951175765,0.59772833,1951.0,1950.3,0.07355802]
[1770951176263,0.59772833,1950.8,1950.3,0.00655396]
[1770951176668,0.59772833,1950.7,1950.3,0.07355802]
[1770951177166,52.45857714,1951.8,1950.3,0.07355802]
[1770951177372,0.59772833,1950.8,1950.3,0.07355802]
[1770951177765,0.59772833,1951.7,1950.3,0.07355802]
[1770951177966,0.59772833,1951.3,1950.3,0.07355802]
[1770951178366,0.59772833,1951.0,1950.3,0.07355802]
[1770951180771,0.5875979,1950.9,1950.3,0.07355802]
[1770951180971,0.5875979,1950.9,1949.9,0.02180396]
[1770951181872,0.5128,1950.7,1949.9,0.00589087]
[1770951182176,0.58735831,1950.6,1949.9,0.02817401]
[1770951182363,0.59326146,1950.6,1949.9,0.02817401]
[1770951182569,0.59326146,1950.6,1950.0,0.02228314]
[1770951182964,0.58735831,1950.5,1950.0,0.02228314]
[1770951183773,0.58735831,1950.5,1949.9,0.00589087]
[1770951183977,0.57896494,1950.3,1949.6,0.03906989]
[1770951184375,0.57896494,1950.3,1949.7,40.8]
[1770951184576,0.57896494,1950.3,1949.6,0.03906989]
[1770951184773,0.57896494,1950.1,1949.6,0.03906989]
[1770951184971,0.57896494,1950.1,1949.6,0.00438722]
[1770951185179,0.57896494,1950.1,1949.6,40.80438722]
[1770951185369,0.57872285,1949.9,1949.6,0.00438722]
[1770951185575,0.57872285,1949.9,1949.4,11.46606989]
[1770951185973,0.57872285,1949.9,1949.4,52.26606989]
[1770951186578,0.57872285,1949.9,1949.4,52.27212734]
[1770951187487,1.09152285,1949.9,1949.4,52.27212734]
[1770951187979,0.57897429,1949.8,1949.4,52.27212734]
[1770951188178,0.57897429,1949.8,1949.4,11.43305745]
[1770951189178,1.09177429,1949.7,1949.4,11.43305745]
[1770951189378,0.57897429,1949.7,1949.4,11.43305745]
[1770951189680,1.09177429,1949.7,1949.4,11.43305745]
[1770951190279,1.09177429,1949.7,1949.4,0.00605745]
[1770951190480,0.5128,1949.6,1949.4,0.00605745]
[1770951190780,0.57898543,1950.5,1949.3,0.0390289]
[1770951190982,0.57898543,1950.1,1949.3,0.0390289]
[1770951191580,1.09151329,1950.0,1949.3,0.04487653]
[1770951191885,0.57871329,1950.0,1949.3,0.04487653]
[1770951193484,1.09151329,1950.0,1949.3,0.04487653]
[1770951193681,0.57287015,1949.9,1949.3,0.04487653]
[1770951195183,1.08567015,1949.9,1949.3,0.04487653]
[1770951195682,0.57289551,1950.5,1949.4,0.05120874]
[1770951195888,0.57289551,1950.3,1949.5,11.69220874]
[1770951196087,0.57289551,1950.3,1949.5,11.641]
[1770951196288,0.57289551,1949.9,1949.5,11.641]
[1770951196488,0.57289551,1949.9,1949.5,11.69220874]
[1770951196789,0.5128,1949.8,1949.6,0.05120874]
[1770951197088,0.57289551,1949.7,1949.5,11.641]
[1770951197281,0.57289551,1949.7,1949.5,10.49177404]
[1770951197479,0.57289551,1949.7,1949.2,47.20372684]
[1770951197480,0.57289551,1949.7,1949.2,40.8]
[1770951197678,0.57289551,1949.7,1949.1,11.726]
[1770951197890,0.57498716,1949.4,1949.1,11.77302543]
[1770951198090,0.57498716,1949.4,1949.1,52.57302543]
[1770951198387,1.08193953,1949.4,1949.1,52.57302543]
[1770951198687,0.57498716,1949.3,1949.1,11.73125605]
[1770951198889,1.08193953,1949.2,1949.1,11.73125605]
[1770951199090,0.0065765,1949.2,1949.1,11.73125605]
[1770951199288,0.51352887,1949.2,1949.1,11.73125605]
[1770951199793,1.09395528,1949.2,1949.1,11.73125605]
[1770951201595,0.58700291,1949.2,1949.1,11.73125605]
[1770951202194,1.09395528,1949.2,1949.1,11.73125605]
[1770951202394,10.132,1950.1,1949.2,0.13280034]
[1770951202395,0.55369839,1949.8,1949.2,0.13280034]
[1770951202595,0.55369839,1950.0,1949.2,0.13280034]
[1770951203398,0.55937029,1950.0,1949.3,0.1326215]
[1770951204196,0.0056719,1950.0,1949.3,0.1326215]
[1770951204398,0.55369839,1950.7,1949.7,0.1326215]
[1770951204697,0.55369839,1950.7,1949.9,0.1326215]
[1770951205092,0.55369839,1950.7,1950.1,0.1326215]
[1770951205293,0.00381849,1950.7,1950.3,0.1326215]
[1770951205596,0.55369839,1951.5,1950.3,0.1326215]
[1770951205796,0.55369839,1951.3,1950.3,0.1326215]
[1770951206595,0.55914372,1951.3,1950.3,0.1326215]
[1770951208396,0.55914372,1951.3,1950.2,11.885]
[1770951208592,0.55914372,1951.3,1950.3,0.13225861]
[1770951208899,0.55914372,1951.3,1950.2,11.885]
[1770951210002,0.55914372,1951.3,1950.3,0.13323569]
[1770951211009,0.55914372,1951.3,1950.2,11.885]
[1770951211301,0.55914372,1951.3,1950.2,12.01728868]
[1770951211797,0.55914372,1951.3,1950.2,11.885]
[1770951212003,0.5512097,1951.1,1949.8,6.3524481]
[1770951212205,0.5512097,1951.1,1949.9,11.931]
[1770951213106,0.5512097,1950.9,1949.9,11.931]
[1770951213696,0.5512097,1950.9,1949.9,12.0484854]
[1770951213998,0.5512097,1950.9,1950.0,0.1174854]
[1770951215606,0.5512097,1950.9,1949.9,12.04742091]
[1770951215795,0.5512097,1950.9,1950.0,0.11642091]
[1770951217704,0.5512097,1950.9,1950.1,0.11870481]
[1770951219110,0.5512097,1950.9,1949.9,18.0267981]
[1770951219304,0.5512097,1950.9,1949.9,11.931]
[1770951219509,0.5512097,1950.9,1949.9,12.0525341]
[1770951220807,0.5512097,1950.9,1949.9,11.931]
[1770951221013,0.59823132,1950.8,1949.6,6.2173322]
[1770951221509,0.59823132,1950.8,1949.7,0.12870491]
[1770951227422,0.59823132,1950.8,1949.9,0.1183249]
[1770951228612,0.59823132,1950.8,1949.7,6.214123]
[1770951228811,0.59823132,1950.8,1949.7,0.1183249]
[1770951230320,0.59823132,1950.8,1949.8,0.11979605]
[1770951231423,0.59823132,1950.4,1949.5,52.675]
[1770951231618,0.59823132,1950.4,1949.5,11.875]
[1770951235123,0.59823132,1950.4,1949.5,12.43115996]
[1770951235322,0.59823132,1950.4,1949.6,0.55615996]
[1770951236124,0.59823132,1950.4,1949.8,3.05588156]
[1770951237323,0.00197881,1950.2,1949.4,0.74298182]
[1770951237525,0.00197881,1950.2,1949.4,1.34178022]
[1770951238324,0.00197881,1950.2,1949.2,6.6945965]
[1770951238924,0.00197881,1950.2,1949.3,0.5987984]
[1770951240632,0.00197881,1950.2,1949.3,6.6945965]
[1770951240831,0.00197881,1950.2,1949.4,0.59746206]
[1770951241032,0.00197881,1950.2,1949.5,0.59746206]
[1770951242338,0.00197881,1950.2,1949.3,0.5957373]
[1770951243834,0.00197881,1950.2,1949.3,0.59664935]
[1770951244028,0.00378629,1950.3,1949.3,0.59664935]
[1770951244433,0.00378629,1950.3,1949.3,6.69244745]
[1770951244737,0.00378629,1950.3,1949.4,0.59664935]
[1770951246437,0.00409537,1950.1,1949.3,0.59649482]
[1770951246736,0.00409537,1950.6,1949.4,6.0957981]
[1770951246936,0.00409537,1950.6,1949.5,0.59649482]
[1770951247133,0.25656,1950.5,1949.5,0.59649482]
[1770951247334,0.00409537,1950.4,1949.5,0.59649482]
[1770951251443,0.00420221,1950.2,1949.3,0.59644139]
[1770951254046,0.25658,1950.3,1949.5,0.59740368]
[1770951254047,0.25885763,1950.3,1949.5,0.59740368]
[1770951254247,0.25885763,1950.3,1949.6,0.59740368]
[1770951255549,0.25658,1950.3,1949.6,0.59740368]
[1770951255752,0.25874736,1950.3,1949.6,0.59740368]
[1770951255955,0.00216736,1950.2,1949.6,0.59740368]
[1770951257757,0.25790184,1950.3,1949.6,0.59740368]
[1770951258349,6.31,1950.5,1949.7,0.59788158]
[1770951258750,6.31132184,1950.5,1949.7,0.59788158]
[1770951259657,0.00132184,1950.5,1949.8,0.59966151]
[1770951259858,13.83853,1950.8,1949.9,0.59966151]
[1770951261258,13.83853,1950.8,1950.0,0.59966151]
[1770951272865,13.83853,1950.8,1950.1,0.61168807]
[1770951275162,13.582,1950.8,1950.2,0.6116929]
[1770951276069,13.582,1950.8,1950.2,0.61244265]